bitfinex-derivatives/quotes_BTCF0:USTF0_20260107
["timestamp","ask_amount","ask_price","bid_price","bid_amount"]
[1767751559466,0.010796,92673.0,92657.0,0.09883219]
[1767751559671,0.010796,92673.0,92658.0,0.0918]
[1767751560174,0.010796,92674.0,92658.0,0.102598]
[1767751560366,0.010796,92674.0,92658.0,0.0918]
[1767751560669,0.010796,92674.0,92657.0,0.09883219]
[1767751560868,0.010797,92666.0,92649.0,0.09755966]
[1767751561071,0.09951009,92666.0,92649.0,0.0918]
[1767751561272,0.010797,92664.0,92644.0,0.06025185]
[1767751561472,9.391e-05,92665.0,92659.0,0.010798]
[1767751561672,0.010795,92678.0,92663.0,0.12461693]
[1767751561874,0.09916894,92672.0,92647.0,0.09085391]
[1767751562177,0.0918,92683.0,92650.0,0.010799]
[1767751562178,0.010797,92668.0,92650.0,0.010799]
[1767751562368,0.102596,92671.0,92650.0,0.010799]
[1767751562567,0.010797,92669.0,92650.0,0.010799]
[1767751563272,0.010797,92666.0,92648.0,0.0918]
[1767751563472,0.010797,92669.0,92649.0,0.010799]
[1767751563667,0.010797,92669.0,92651.0,0.010799]
[1767751563868,0.0918,92671.0,92651.0,0.010799]
[1767751564275,0.0918,92671.0,92654.0,0.010798]
[1767751564669,0.010795,92682.0,92661.0,0.010797]
[1767751564874,0.0918,92681.0,92661.0,0.010797]
[1767751565077,0.09916894,92684.0,92666.0,0.010797]
[1767751565374,0.0918,92691.0,92681.0,0.010795]
[1767751565572,0.0918,92693.0,92681.0,0.010795]
[1767751565970,0.010792,92707.0,92687.0,0.010794]
[1767751566279,0.010792,92705.0,92684.0,0.010795]
[1767751566470,0.010793,92702.0,92681.0,0.010795]
[1767751566870,0.010793,92702.0,92683.0,0.010795]
[1767751567385,0.0918,92706.0,92683.0,0.010795]
[1767751568077,0.09916894,92699.0,92672.0,0.03376302]
[1767751568270,0.010795,92687.0,92670.0,0.010796]
[1767751568780,0.010794,92690.0,92672.0,0.010796]
[1767751568970,0.09916894,92693.0,92671.0,0.010796]
[1767751569279,0.09916894,92693.0,92668.0,0.0918]
[1767751569577,0.09916894,92681.0,92658.0,0.010798]
[1767751569776,0.09916894,92677.0,92658.0,0.010798]
[1767751569971,0.0918,92677.0,92657.0,0.09085391]
[1767751570172,0.0918,92677.0,92666.0,0.010797]
[1767751570367,0.0918,92677.0,92660.0,0.12461693]
[1767751570680,0.010796,92674.0,92657.0,0.010798]
[1767751570867,0.0918,92677.0,92656.0,0.09085391]
[1767751571067,0.0918,92677.0,92657.0,0.09085391]
[1767751571268,0.0918,92677.0,92661.0,0.010797]
[1767751571476,0.010796,92676.0,92658.0,0.010798]
[1767751571677,0.010796,92674.0,92657.0,0.10165191]
[1767751571878,0.010796,92673.0,92658.0,0.010798]
[1767751572078,0.010796,92676.0,92658.0,0.010798]
[1767751572278,0.010796,92676.0,92660.0,0.010798]
[1767751572780,0.0918,92677.0,92657.0,0.09085391]
[1767751572781,0.010796,92674.0,92657.0,0.09085391]
[1767751572982,0.0918,92677.0,92660.0,0.010798]
[1767751574178,0.1794,92711.0,92673.0,0.09085391]
[1767751574179,0.09916894,92703.0,92673.0,0.09085391]
[1767751574375,0.010794,92691.0,92673.0,0.09085391]
[1767751574574,0.09916894,92697.0,92676.0,0.010796]
[1767751574778,0.010793,92697.0,92680.0,0.010795]
[1767751574982,0.19096894,92700.0,92673.0,0.09085391]
[1767751575178,0.010793,92697.0,92673.0,0.09085391]
[1767751575482,0.010794,92695.0,92677.0,0.010796]
[1767751576982,0.010794,92695.0,92673.0,0.09085391]
[1767751576983,0.010794,92689.0,92671.0,0.010796]
[1767751577181,0.010794,92692.0,92670.0,0.0918]
[1767751577789,0.010794,92692.0,92672.0,0.010796]
[1767751578283,0.010794,92692.0,92674.0,0.010796]
[1767751578769,0.010795,92681.0,92667.0,0.05826393]
[1767751579080,0.10996294,92687.0,92669.0,0.010796]
[1767751579773,0.010795,92685.0,92666.0,0.010797]
[1767751580170,0.09916894,92687.0,92668.0,0.010797]
[1767751580680,0.09916894,92687.0,92664.0,0.0918]
[1767751580880,0.010795,92683.0,92665.0,0.010797]
[1767751581087,0.010795,92684.0,92665.0,0.010797]
[1767751581283,0.010795,92684.0,92667.0,0.010797]
[1767751581480,0.0918,92688.0,92669.0,0.09085391]
[1767751581681,0.0918,92688.0,92674.0,0.010796]
[1767751583590,0.0918,92688.0,92664.0,0.0918]
[1767751583591,0.09916894,92687.0,92664.0,0.0918]
[1767751583885,0.0918,92688.0,92666.0,0.09085391]
[1767751584280,0.0918,92688.0,92670.0,0.010796]
[1767751584775,0.010795,92684.0,92666.0,0.09085391]
[1767751584982,0.09916894,92677.0,92656.0,0.010798]
[1767751585292,0.010796,92672.0,92655.0,0.0918]
[1767751585481,0.010796,92675.0,92655.0,0.0918]
[1767751585684,0.010796,92673.0,92655.0,0.0918]
[1767751585891,0.010797,92669.0,92652.0,0.09085391]
[1767751586087,0.010796,92672.0,92652.0,0.19345191]
[1767751586584,0.01295523,92669.0,92649.0,0.010799]
[1767751586991,0.010798,92659.0,92644.0,0.05883151]
[1767751587186,0.00215823,92669.0,92624.0,0.12461693]
[1767751587187,0.03462627,92654.0,92624.0,0.12461693]
[1767751587497,0.40215823,92669.0,92624.0,0.12461693]
[1767751587498,0.09916894,92647.0,92625.0,0.010802]
[1767751587788,0.09916894,92647.0,92622.0,0.05852569]
[1767751587991,0.03462627,92648.0,92622.0,0.0918]
[1767751587992,0.10996894,92643.0,92622.0,0.0918]
[1767751588190,0.0108,92636.0,92617.0,0.05805205]
[1767751588381,0.09916894,92639.0,92616.0,0.0918]
[1767751588581,0.0108,92642.0,92618.0,0.12461693]
[1767751588980,0.13379521,92646.0,92618.0,0.12461693]
[1767751588981,0.09916894,92645.0,92619.0,0.010802]
[1767751589280,0.0918,92650.0,92630.0,0.09085391]
[1767751589482,0.0918,92649.0,92630.0,0.09085391]
[1767751589884,0.0918,92649.0,92623.0,0.010802]
[1767751589885,0.19096894,92649.0,92623.0,0.010802]
[1767751590288,0.20176794,92649.0,92623.0,0.010802]
[1767751590684,0.19096894,92649.0,92622.0,0.09085391]
[1767751590886,0.010801,92634.0,92620.0,0.03376302]
[1767751591085,0.010801,92634.0,92614.0,0.24331999]
[1767751591488,0.0108,92638.0,92615.0,0.10988519]
[1767751592096,0.0108,92642.0,92615.0,0.10988519]
[1767751592295,0.010799,92646.0,92621.0,0.10988419]
[1767751592480,0.09037648,92635.0,92614.0,0.07146908]
[1767751592687,0.010801,92635.0,92614.0,0.17055127]
[1767751592995,0.010801,92635.0,92615.0,0.1289775]
[1767751593190,0.0918,92638.0,92615.0,0.1289775]
[1767751593495,0.010801,92634.0,92615.0,0.1289775]
[1767751593999,0.010801,92631.0,92615.0,0.1289775]
[1767751594188,0.010801,92631.0,92614.0,8.105e-05]
[1767751594389,0.010801,92635.0,92614.0,8.105e-05]
[1767751594790,0.010801,92635.0,92614.0,0.01088405]
[1767751594996,0.1026,92638.0,92616.0,0.010803]
[1767751595399,0.00215893,92639.0,92621.0,0.02989531]
[1767751595598,0.0918,92638.0,92622.0,0.09908219]
[1767751596099,0.010801,92634.0,92614.0,8.105e-05]
[1767751596288,0.008301,92634.0,92614.0,8.105e-05]
[1767751596685,0.0108,92637.0,92615.0,0.010803]
[1767751596988,0.010801,92633.0,92614.0,8.105e-05]
[1767751597194,0.09037648,92636.0,92614.0,8.105e-05]
[1767751597697,0.03104273,92635.0,92614.0,8.105e-05]
[1767751597997,0.010801,92628.0,92614.0,8.105e-05]
[1767751599089,0.00215893,92639.0,92606.0,0.05857145]
[1767751599090,0.09037648,92624.0,92606.0,0.05857145]
[1767751599290,0.10117848,92622.0,92597.0,0.09184]
[1767751600197,0.010803,92615.0,92597.0,0.09184]
[1767751600399,0.010803,92612.0,92597.0,0.09184]
[1767751600600,0.010803,92618.0,92598.0,0.010805]
[1767751600805,0.010803,92618.0,92597.0,0.09184]
[1767751601404,9.312e-05,92621.0,92597.0,0.09184]
[1767751601606,9.312e-05,92621.0,92610.0,0.02989531]
[1767751601904,0.09184,92633.0,92618.0,0.1397795]
[1767751602495,0.09184,92633.0,92618.0,0.10988419]
[1767751602805,0.010801,92630.0,92605.0,0.02989531]
[1767751603003,0.010801,92627.0,92608.0,0.010804]
[1767751603205,0.010801,92630.0,92610.0,0.010803]
[1767751604007,0.09037648,92632.0,92607.0,0.09908219]
[1767751604194,0.09037648,92632.0,92607.0,0.1289775]
[1767751604390,0.010802,92623.0,92602.0,0.010804]
[1767751604594,0.010802,92626.0,92604.0,0.010804]
[1767751605103,0.09184,92633.0,92600.0,0.09908219]
[1767751605104,0.010803,92616.0,92603.0,0.09184]
[1767751605301,0.010803,92616.0,92600.0,0.09908219]
[1767751605302,0.010803,92616.0,92596.0,0.09184]
[1767751605607,0.010803,92614.0,92596.0,0.09184]
[1767751606108,0.010803,92617.0,92598.0,0.010805]
[1767751606405,0.12141921,92621.0,92596.0,0.102645]
[1767751607794,0.010803,92613.0,92596.0,0.09184]
[1767751607989,0.010803,92613.0,92596.0,0.102645]
[1767751608202,0.010803,92616.0,92598.0,0.010805]
[1767751609103,0.095506,92620.0,92596.0,0.09184]
[1767751609407,0.095506,92620.0,92593.0,0.09908219]
[1767751609408,0.095506,92614.0,92593.0,0.05929275]
[1767751609596,0.010805,92599.0,92583.0,0.102647]
[1767751609796,0.010804,92602.0,92583.0,0.010807]
[1767751610097,0.010805,92600.0,92583.0,0.010807]
[1767751610805,0.02244978,92600.0,92583.0,0.010807]
[1767751611003,0.010805,92598.0,92581.0,0.09184]
[1767751611708,0.010805,92598.0,92582.0,0.010807]
[1767751613592,0.010805,92601.0,92584.0,0.010806]
[1767751614302,0.010805,92601.0,92586.0,0.010806]
[1767751614505,0.010804,92604.0,92586.0,0.010806]
[1767751615105,0.010804,92604.0,92588.0,0.010806]
[1767751615704,0.010804,92604.0,92585.0,0.010806]
[1767751615904,0.187346,92606.0,92590.0,0.010806]
[1767751616111,0.102644,92606.0,92589.0,0.010806]
[1767751616301,0.102644,92606.0,92590.0,0.02904019]
[1767751616503,0.102644,92606.0,92589.0,0.1047082]
[1767751618110,0.12408569,92601.0,92575.0,0.08956884]
[1767751618301,0.010805,92598.0,92582.0,0.010807]
[1767751618612,0.09184,92606.0,92589.0,0.12294239]
[1767751619408,0.010804,92605.0,92589.0,0.12294239]
[1767751619712,0.010804,92603.0,92589.0,0.12294239]
[1767751620095,0.09184,92606.0,92582.0,0.03984719]
[1767751620096,0.010805,92598.0,92582.0,0.03984719]
[1767751620297,0.095506,92599.0,92576.0,0.010807]
[1767751620502,0.010806,92588.0,92575.0,0.06052865]
[1767751620703,0.010806,92587.0,92573.0,0.010808]
[1767751621312,0.095506,92594.0,92573.0,0.010808]
[1767751621313,0.010806,92585.0,92573.0,0.05831298]
[1767751621610,0.010807,92582.0,92568.0,0.010808]
[1767751622409,0.18693065,92584.0,92570.0,0.010808]
[1767751622611,0.010805,92598.0,92577.0,0.12231261]
[1767751622812,0.010805,92596.0,92580.0,0.010807]
[1767751623107,0.00215963,92609.0,92588.0,0.010806]
[1767751623315,0.00215963,92609.0,92597.0,0.010805]
[1767751623316,0.09188,92608.0,92597.0,0.010805]
[1767751623611,0.09188,92608.0,92599.0,0.010805]
[1767751623810,0.09188,92608.0,92591.0,0.09582055]
[1767751624013,0.09188,92608.0,92594.0,0.010805]
[1767751624410,0.09188,92608.0,92596.0,0.010805]
[1767751624604,0.09188,92608.0,92593.0,0.010805]
[1767751624803,0.09188,92608.0,92591.0,0.09582055]
[1767751624804,0.09188,92608.0,92597.0,0.010805]
[1767751625006,0.12185398,92618.0,92587.0,0.010806]
[1767751625007,0.09188,92618.0,92604.0,0.09582055]
[1767751625304,0.09188,92618.0,92607.0,0.010804]
[1767751625500,0.09188,92618.0,92604.0,0.10662455]
[1767751625700,0.09188,92618.0,92604.0,0.09582055]
[1767751625906,0.211101,92630.0,92595.0,0.010805]
[1767751625907,0.09188,92622.0,92605.0,0.02788441]
[1767751626107,0.09188,92622.0,92605.0,0.010804]
[1767751626313,0.09188,92622.0,92607.0,0.010804]
[1767751626709,0.12072899,92633.0,92603.0,0.02788441]
[1767751626919,0.010802,92626.0,92605.0,0.010804]
[1767751627103,0.02567834,92626.0,92599.0,0.05854959]
[1767751627304,0.09834307,92630.0,92603.0,0.1227765]
[1767751627617,0.09834307,92623.0,92601.0,0.010804]
[1767751627815,0.09834307,92623.0,92605.0,0.010804]
[1767751628015,0.010802,92622.0,92601.0,0.010804]
[1767751628615,0.010803,92614.0,92596.0,0.0604971]
[1767751628920,0.010803,92612.0,92594.0,0.09188]
[1767751629307,0.10914607,92616.0,92594.0,0.09188]
[1767751629718,0.010801,92627.0,92606.0,0.010804]
[1767751630019,0.09188,92626.0,92608.0,0.010804]
[1767751630521,0.09188,92626.0,92605.0,0.010804]
[1767751630819,0.09188,92626.0,92608.0,0.010804]
[1767751631117,0.010801,92633.0,92611.0,0.010803]
[1767751631322,0.09188,92632.0,92621.0,0.010802]
[1767751631521,0.09188,92636.0,92623.0,0.010802]
[1767751631722,0.09188,92636.0,92625.0,0.010802]
[1767751631923,0.09188,92636.0,92622.0,0.010802]
[1767751632216,0.09188,92636.0,92621.0,0.1227765]
[1767751632423,0.09188,92636.0,92621.0,0.09489209]
[1767751632811,0.09188,92636.0,92621.0,0.10569409]
[1767751633420,0.010801,92632.0,92611.0,0.07022362]
[1767751633610,0.010801,92632.0,92611.0,0.010803]
[1767751634019,0.10914407,92635.0,92614.0,0.010803]
[1767751634617,0.10914407,92635.0,92605.0,0.15274145]
[1767751634618,0.09188,92636.0,92618.0,0.010802]
[1767751635418,0.09188,92636.0,92619.0,0.010802]
[1767751635617,0.09188,92636.0,92623.0,0.010802]
[1767751635913,0.09188,92636.0,92620.0,0.010802]
[1767751637026,0.09188,92636.0,92617.0,0.010803]
[1767751637226,0.09188,92636.0,92619.0,0.010802]
[1767751638422,0.09188,92636.0,92616.0,0.09489209]
[1767751638628,0.09188,92636.0,92620.0,0.010802]
[1767751639928,0.09188,92636.0,92617.0,0.09489209]
[1767751639929,0.09188,92636.0,92617.0,0.10569509]
[1767751640223,0.09188,92636.0,92611.0,0.11972441]
[1767751640224,0.19022307,92636.0,92612.0,0.010803]
[1767751640425,0.010802,92626.0,92606.0,0.010804]
[1767751640630,0.010802,92626.0,92609.0,0.09184]
[1767751640827,0.12402141,92624.0,92600.0,0.06087067]
[1767751641033,0.010803,92611.0,92595.0,0.09184]
[1767751641231,0.09834307,92616.0,92595.0,0.09184]
[1767751641430,0.010804,92606.0,92588.0,0.010806]
[1767751641729,0.11751834,92615.0,92592.0,0.1227765]
[1767751641730,0.010803,92610.0,92592.0,0.1227765]
[1767751641946,0.010803,92611.0,92593.0,0.010805]
[1767751642148,0.010803,92614.0,92593.0,0.010805]
[1767751642346,0.010803,92614.0,92595.0,0.010805]
[1767751642947,0.010801,92628.0,92596.0,0.02788441]
[1767751643155,0.010797,92663.0,92639.0,0.02788441]
[1767751643451,0.010797,92667.0,92644.0,0.09489209]
[1767751643647,0.00215823,92669.0,92652.0,0.010798]
[1767751644042,0.4,92670.0,92652.0,0.010798]
[1767751644335,0.4,92670.0,92645.0,0.010799]
[1767751644541,0.02567834,92676.0,92645.0,0.010799]
[1767751644742,0.02567834,92675.0,92648.0,0.010799]
[1767751645149,0.0115185,92676.0,92641.0,0.0108]
[1767751645150,0.02567834,92667.0,92641.0,0.0108]
[1767751645346,0.02567834,92666.0,92641.0,0.09184]
[1767751645945,0.09184,92667.0,92641.0,0.2455368]
[1767751646250,0.09184,92667.0,92642.0,0.09489209]
[1767751646450,0.09184,92667.0,92644.0,0.09489209]
[1767751647255,0.09184,92667.0,92654.0,0.010798]
[1767751647454,0.09184,92667.0,92650.0,0.010799]
[1767751647657,0.09184,92667.0,92647.0,0.010799]
[1767751648656,0.09184,92667.0,92645.0,0.010799]
[1767751648850,0.09184,92667.0,92644.0,0.09489209]
[1767751649247,0.09184,92667.0,92651.0,0.010799]
[1767751650059,0.09184,92667.0,92648.0,0.010799]
[1767751651154,0.09184,92667.0,92645.0,0.010799]
[1767751651960,0.010797,92664.0,92645.0,0.008299]
[1767751652459,0.102637,92667.0,92647.0,0.010799]
[1767751654164,0.09184,92667.0,92649.0,0.010799]
[1767751654560,0.010797,92666.0,92646.0,0.010799]
[1767751655253,0.18811296,92667.0,92648.0,0.010799]
[1767751656157,0.18811296,92667.0,92650.0,0.010799]
[1767751656661,0.09184,92667.0,92650.0,0.010799]
[1767751656853,0.18811296,92667.0,92646.0,0.010799]
[1767751657262,0.09184,92679.0,92653.0,0.11600696]
[1767751657566,0.18811296,92679.0,92657.0,0.010798]
[1767751657861,0.09627296,92678.0,92657.0,0.010798]
[1767751658356,0.09627296,92678.0,92659.0,0.010798]
[1767751658563,0.09627296,92678.0,92663.0,0.010797]
[1767751659764,0.09627296,92678.0,92655.0,0.102638]
[1767751659959,0.09627296,92678.0,92655.0,0.09184]
[1767751660359,0.09627296,92678.0,92660.0,0.010798]
[1767751660572,0.09184,92679.0,92657.0,0.02389298]
[1767751660765,0.09184,92679.0,92664.0,0.010797]
[1767751660953,0.09184,92679.0,92661.0,0.010797]
[1767751661158,0.09627296,92676.0,92660.0,0.010798]
[1767751661855,0.09627296,92676.0,92659.0,0.010798]
[1767751662766,0.010796,92675.0,92659.0,0.010798]
[1767751663567,0.010796,92675.0,92656.0,0.010798]
[1767751664067,0.010796,92675.0,92658.0,0.010798]
[1767751665168,0.09627296,92676.0,92655.0,0.15076058]
[1767751665468,0.09627296,92676.0,92664.0,0.010797]
[1767751665660,0.09627296,92676.0,92655.0,0.15076058]
[1767751665661,0.09627296,92676.0,92661.0,0.010797]
[1767751667668,0.09627296,92676.0,92663.0,0.010797]
[1767751667867,0.09627296,92676.0,92661.0,0.010797]
[1767751668472,0.09627296,92676.0,92660.0,0.010797]
[1767751669574,0.010796,92675.0,92657.0,0.010798]
[1767751669774,0.09627296,92676.0,92655.0,0.16155858]
[1767751670675,0.010796,92674.0,92657.0,0.010798]
[1767751671164,0.09627296,92676.0,92655.0,0.15076058]
[1767751671165,0.09627296,92676.0,92659.0,0.010798]
[1767751671875,0.09627296,92676.0,92656.0,0.010798]
[1767751672772,0.12204772,92660.0,92645.0,0.0918]
[1767751673072,0.010797,92664.0,92646.0,0.010799]
[1767751673671,0.010798,92661.0,92645.0,0.15175364]
[1767751674176,0.13284472,92664.0,92646.0,0.010799]
[1767751675163,0.13284472,92664.0,92645.0,0.15175364]
[1767751675164,0.010798,92655.0,92645.0,0.05995364]
[1767751675368,0.12204772,92652.0,92637.0,0.06935779]
[1767751675568,0.12204772,92652.0,92637.0,0.05855779]
[1767751675778,0.010799,92649.0,92635.0,0.0918]
[1767751675978,0.13284672,92652.0,92635.0,0.0918]
[1767751676179,0.02577476,92657.0,92635.0,0.0918]
[1767751676383,0.02577476,92657.0,92635.0,0.15137473]
[1767751676574,0.02577476,92657.0,92643.0,0.0108]
[1767751676970,0.02577476,92657.0,92640.0,0.0108]
[1767751677572,0.03657276,92657.0,92637.0,0.0108]
[1767751677779,0.010796,92672.0,92654.0,0.010798]
[1767751677980,0.010796,92672.0,92653.0,0.010798]
[1767751678370,0.0918,92673.0,92624.0,0.010802]
[1767751678371,0.11811366,92671.0,92646.0,0.02320012]
[1767751678568,0.010797,92663.0,92646.0,0.010799]
[1767751678766,0.11811366,92663.0,92646.0,0.010799]
[1767751679181,0.12891066,92663.0,92646.0,0.010799]
[1767751680781,0.11811366,92663.0,92646.0,0.010799]
[1767751681079,0.09413012,92679.0,92662.0,0.010797]
[1767751681286,0.0918,92678.0,92656.0,0.11509847]
[1767751681786,0.010795,92681.0,92661.0,0.010797]
[1767751681970,0.13062121,92684.0,92665.0,0.010797]
[1767751682169,0.22336832,92690.0,92663.0,0.11449685]
[1767751682381,0.23416232,92690.0,92671.0,0.010796]
[1767751682582,0.22336832,92690.0,92673.0,0.010796]
[1767751682972,0.11982621,92670.0,92656.0,0.05838582]
[1767751683174,0.09551556,92658.0,92641.0,0.0108]
[1767751683386,0.10631356,92658.0,92641.0,0.0593927]
[1767751683587,0.10631356,92658.0,92639.0,0.0108]
[1767751683783,0.0918,92664.0,92589.0,0.13626235]
[1767751683784,0.010799,92650.0,92628.0,0.09179058]
[1767751683978,0.09551556,92648.0,92628.0,0.102601]
[1767751684380,0.09551556,92642.0,92625.0,0.15009477]
[1767751684789,0.010799,92647.0,92628.0,0.010801]
[1767751684988,0.02431065,92649.0,92630.0,0.010801]
[1767751685284,0.09551556,92650.0,92637.0,0.0108]
[1767751685788,0.09551556,92650.0,92640.0,0.0108]
[1767751685987,0.0918,92656.0,92640.0,0.0108]
[1767751686389,0.0918,92663.0,92641.0,0.11449685]
[1767751686589,0.0918,92665.0,92641.0,0.11449685]
[1767751686791,0.0918,92665.0,92641.0,0.12529685]
[1767751686792,0.010797,92662.0,92641.0,0.12529685]
[1767751688784,0.010797,92664.0,92641.0,0.11449685]
[1767751689092,0.010797,92661.0,92641.0,0.12529685]
[1767751690786,0.010797,92663.0,92643.0,0.09179058]
[1767751690995,0.010798,92661.0,92643.0,0.09179058]
[1767751692087,0.010798,92659.0,92643.0,0.09179058]
[1767751693195,0.0918,92665.0,92643.0,0.09179058]
[1767751693388,0.0918,92665.0,92643.0,0.10259058]
[1767751693895,0.010798,92661.0,92643.0,0.10259058]
[1767751694092,0.09551556,92680.0,92658.0,0.12529485]
[1767751694291,0.09184,92679.0,92658.0,0.10258858]
[1767751694491,0.010796,92677.0,92660.0,0.010798]
[1767751694997,0.010796,92677.0,92657.0,0.010798]
[1767751695494,0.09184,92679.0,92653.0,0.11449685]
[1767751695697,0.09184,92679.0,92662.0,0.010797]
[1767751696492,0.102635,92679.0,92659.0,0.010798]
[1767751697700,0.09184,92679.0,92662.0,0.11449685]
[1767751698000,0.09184,92679.0,92663.0,0.010797]
[1767751698504,0.102635,92679.0,92662.0,0.09179058]
[1767751698710,0.010796,92675.0,92659.0,0.010798]
[1767751698912,0.010796,92678.0,92659.0,0.010798]
[1767751699096,0.010796,92676.0,92659.0,0.010798]
[1767751699300,0.010796,92678.0,92661.0,0.12529385]
[1767751699707,0.010796,92676.0,92658.0,0.010798]
[1767751699904,0.11982621,92667.0,92652.0,0.05938117]
[1767751700207,0.09551556,92672.0,92651.0,0.0918]
[1767751700610,0.03510665,92677.0,92652.0,0.09179058]
[1767751700809,0.13062221,92677.0,92660.0,0.010798]
[1767751701401,0.010796,92675.0,92652.0,0.09179058]
[1767751701799,0.010796,92675.0,92657.0,0.010798]
[1767751702309,0.010796,92675.0,92652.0,0.09179058]
[1767751702509,0.010796,92673.0,92652.0,0.09179058]
[1767751703302,0.09551556,92688.0,92664.0,0.12529385]
[1767751703503,0.10631156,92677.0,92651.0,0.05999796]
[1767751703808,0.13062221,92677.0,92652.0,0.0918]
[1767751704009,0.02431065,92682.0,92664.0,0.010797]
[1767751704210,0.02431065,92682.0,92657.0,0.02270627]
[1767751704408,0.010796,92675.0,92658.0,0.010798]
[1767751704703,0.010796,92678.0,92656.0,0.09179058]
[1767751704904,0.010796,92678.0,92662.0,0.010797]
[1767751705110,0.010795,92680.0,92660.0,0.10334342]
[1767751705301,0.010795,92678.0,92662.0,0.010797]
[1767751705708,0.10631056,92681.0,92662.0,0.010797]
[1767751706814,0.09551556,92681.0,92660.0,0.10334342]
[1767751707005,0.010796,92677.0,92660.0,0.10334342]
[1767751707204,0.010796,92677.0,92661.0,0.010797]
[1767751708514,0.09551556,92679.0,92663.0,0.010797]
[1767751709014,0.010796,92678.0,92660.0,0.11414042]
[1767751709520,0.010796,92678.0,92662.0,0.010797]
[1767751711216,0.09551556,92679.0,92660.0,0.10334342]
[1767751711217,0.010796,92676.0,92660.0,0.10334342]
[1767751711409,0.010796,92676.0,92661.0,0.010797]
[1767751712518,0.010796,92674.0,92660.0,0.10334342]
[1767751712711,0.102594,92689.0,92650.0,0.010799]
[1767751712712,0.010797,92665.0,92650.0,0.010799]
[1767751712912,0.010797,92667.0,92654.0,0.0918]
[1767751713215,0.11571959,92670.0,92657.0,0.010798]
[1767751713410,0.11571959,92670.0,92654.0,0.0918]
[1767751713411,0.11571959,92670.0,92655.0,0.010798]
[1767751713717,0.010797,92669.0,92654.0,0.0918]
[1767751714110,0.010797,92669.0,92654.0,0.102598]
[1767751714320,0.11571959,92670.0,92654.0,0.102598]
[1767751714321,0.11571959,92670.0,92654.0,0.010798]
[1767751714715,0.11571959,92670.0,92652.0,0.010799]
[1767751714716,0.010797,92669.0,92652.0,0.010799]
[1767751715221,0.09435332,92670.0,92652.0,0.010798]
[1767751716317,0.010797,92668.0,92652.0,0.010798]
[1767751717328,0.010797,92666.0,92651.0,0.05958161]
[1767751717619,0.010798,92661.0,92649.0,0.0918]
[1767751717817,0.10334342,92670.0,92642.0,0.0218458]
[1767751717818,0.10334342,92660.0,92642.0,0.0218458]
[1767751718017,0.11571959,92662.0,92643.0,0.0918]
[1767751718212,0.11571959,92662.0,92644.0,0.0918]
[1767751718412,0.11571959,92662.0,92647.0,0.010799]
[1767751719024,0.09435332,92662.0,92643.0,0.0918]
[1767751719220,0.09435332,92662.0,92650.0,0.010799]
[1767751720825,0.09435332,92662.0,92647.0,0.010799]
[1767751721017,0.09435332,92662.0,92641.0,0.0326458]
[1767751721216,0.010797,92662.0,92644.0,0.010799]
[1767751721417,0.010798,92661.0,92644.0,0.010799]
[1767751721917,0.010798,92656.0,92638.0,0.0218458]
[1767751722115,0.010798,92656.0,92639.0,0.0918]
[1767751722328,0.010798,92656.0,92640.0,0.10334342]
[1767751722526,0.010798,92656.0,92639.0,0.0918]
[1767751722826,0.010798,92653.0,92638.0,0.0218458]
[1767751723026,0.010798,92653.0,92611.0,0.010803]
[1767751723027,0.0108,92641.0,92620.0,0.0218458]
[1767751723328,0.09435332,92643.0,92625.0,0.16250065]
[1767751723627,0.0108,92641.0,92625.0,0.15169865]
[1767751724024,0.0108,92639.0,92625.0,0.15169865]
[1767751724929,0.0108,92638.0,92625.0,0.15169865]
[1767751725431,0.0108,92641.0,92625.0,0.15169865]
[1767751729031,0.0108,92640.0,92625.0,0.15169865]
[1767751729433,0.10515332,92643.0,92625.0,0.16250065]
[1767751730224,0.0108,92643.0,92625.0,0.16250065]
[1767751730635,0.0108,92641.0,92625.0,0.16250065]
[1767751731131,0.18619332,92649.0,92625.0,0.16250065]
[1767751731132,0.0108,92644.0,92627.0,0.0218458]
[1767751732333,0.0108,92644.0,92639.0,0.00215893]
[1767751733537,0.010799,92645.0,92639.0,0.00215893]
[1767751733827,0.010797,92662.0,92639.0,0.00215893]
[1767751734031,0.09184,92661.0,92641.0,0.12039833]
[1767751734236,0.09184,92661.0,92643.0,0.0218458]
[1767751735035,0.010798,92655.0,92643.0,0.0218458]
[1767751735333,0.010798,92655.0,92642.0,0.09855253]
[1767751737038,0.11417784,92645.0,92625.0,0.05989865]
[1767751737243,0.10334342,92640.0,92625.0,0.05989865]
[1767751737438,0.10334342,92640.0,92626.0,0.010802]
[1767751737832,0.11417784,92645.0,92626.0,0.010802]
[1767751738741,0.0108,92641.0,92625.0,0.05989865]
[1767751739346,0.0108,92641.0,92625.0,0.07070065]
[1767751740042,0.0108,92639.0,92625.0,0.05989865]
[1767751740244,0.0108,92642.0,92625.0,0.05989865]
[1767751740543,0.0108,92640.0,92625.0,0.05989865]
[1767751740743,0.0108,92643.0,92625.0,0.05989865]
[1767751740945,0.09435332,92645.0,92625.0,0.05989865]
[1767751741332,0.010801,92634.0,92625.0,0.05989865]
[1767751741532,0.010801,92632.0,92622.0,0.09184]
[1767751741739,0.010801,92630.0,92622.0,0.15060925]
[1767751742145,0.10334342,92632.0,92617.0,0.12039833]
[1767751742444,0.010801,92632.0,92617.0,0.09855253]
[1767751742641,0.00010364,92631.0,92617.0,0.09855253]
[1767751742937,0.00010364,92631.0,92617.0,0.15747348]
[1767751743332,0.010801,92630.0,92617.0,0.05892095]
[1767751743551,0.010801,92630.0,92615.0,0.01997368]
[1767751743737,0.010801,92630.0,92615.0,0.07946028]
[1767751743937,0.010801,92630.0,92613.0,0.102643]
[1767751744144,0.010801,92630.0,92613.0,0.16311106]
[1767751744438,0.010801,92629.0,92614.0,0.01997368]
[1767751746139,0.00010364,92631.0,92611.0,0.11608465]
[1767751746443,0.00010364,92631.0,92621.0,0.11608465]
[1767751746643,0.10958276,92647.0,92620.0,0.10334342]
[1767751746644,0.010799,92649.0,92632.0,0.010801]
[1767751746835,0.09184,92656.0,92639.0,0.10334342]
[1767751747150,0.010798,92653.0,92640.0,0.01912265]